Cogmind - Beta 13 @@@ ROGUE MODE // 2024.03.25 @ 04:18:43 // Winter2019/RPGLIKE Player: H3-RMN Result: Core destroyed Performance ------------- Evolutions (0) 0 Regions Visited (1) 200 Robots Destroyed (12) 60 Value Destroyed (96) 96 Prototype IDs (0) 0 Alien Tech Used (0) 0 Bonus (0) 0 TOTAL SCORE: 356 Bonus ------- None Cogmind --------- Core Integrity 0/600 Matter 242/300 Energy 129/250 System Corruption 0% Temperature Critical (556) Movement Core (250) Ox4 Location -10/Materials Parts ------- > --- POWER (1) -------- Ion Engine > --- PROPULSION (1) --- Wheel > --- UTILITY (1) ------ Power Shielding > --- WEAPON (4) ------- EM Pulse Gun Medium Laser Small Laser Light Cannon > --- INVENTORY (0) ---- (None) Peak State ------------ > --- POWER ------------ Ion Engine > --- PROPULSION ------- Wheel > --- UTILITY ---------- Improved Terrain Scanner > --- WEAPON ----------- EM Pulse Gun Small Laser Mining Laser > --- INVENTORY -------- (None) [Rating: 8] Favorites ----------- Power Ion Engine Engine Ion Engine Propulsion Wheel Wheel Wheel Utility Light Armor Plating Device Improved Terrain Scanner Protection Light Armor Plating Weapon Small Laser Energy Gun Small Laser Ballistic Cannon Light Cannon Special Weapon Mining Laser Build | -11 -10 ------- Run | Yrd Mat Slots Evolved 3 | 3 . Power . | . . Propulsion . | . . Utility . | . . Weapon 3 | 3 . Parts Attached 10 | 6 4 Power 1 | 1 . Engine 1 | 1 . Core . | . . Reactor . | . . Propulsion 1 | 1 . Treads . | . . Leg . | . . Wheel 1 | 1 . Hover . | . . Flight . | . . Utility 3 | 1 2 Device 1 | 1 . Storage . | . . Processor . | . . Hackware . | . . Protection 2 | . 2 Artifact . | . . Weapon 5 | 3 2 Energy Gun 3 | 2 1 Energy Cannon . | . . Ballistic Gun . | . . Ballistic Cannon 1 | . 1 Launcher . | . . Special Weapon 1 | 1 . Impact Weapon . | . . Slashing Weapon . | . . Piercing Weapon . | . . Special Melee Weapon . | . . Unidentified Prototypes . | . . Parts Lost 2 | . 2 Power . | . . Propulsion . | . . Utility 1 | . 1 Weapon 1 | . 1 Highest Loss Streak 2 | . 2 To Critical Strikes . | . . Average Slot Usage (%) 85 | . 85 Engine 14 | . 14 Wheel 14 | . 14 Device 2 | . 2 Protection 10 | . 10 Energy Gun 30 | . 30 Special Weapon 12 | . 12 Naked Turns . | . . Heaviest Build 12 | 10 12 Greatest Support 10 | 10 10 Greatest Overweight (x) 2 | 2 1 Average Overweight (x) . | . . Largest Inventory Capacity . | . . Average Capacity . | . . Most Carried . | . . Average Carried . | . . Final Capacity . | . . Final Carried . | . . Class Distribution -------------------- 100% | Gunner Dominant Class ---------------- Gunner | -10/Materials Resources | -11 -10 ----------- Run | Yrd Mat Matter Collected 269 | 250 19 Remotely . | . . Salvage Created 302 | 193 109 Parts 26 | 15 11 Haulers Intercepted . | . . Recyclers Shooed 1 | 1 . Parts Field Recycled . | . . Retrieved Matter . | . . Parts Self-Destructed . | . . Prevented . | . . Kills | -11 -10 ------- Run | Yrd Mat Combat Hostiles Destroyed 5 | . 5 Guns 5 | . 5 Classes Destroyed 4 | 2 2 Builder 1 | . 1 Tunneler 5 | 5 . Recycler 1 | 1 . Swarmer 5 | . 5 Best Kill Streak 6 | 4 6 Combat Bots Only 5 | . 5 Max Kills in Single Turn 1 | 1 1 Gunslinging . | . . Exploded . | . . Melee . | . . Uniques/NPCs Destroyed . | . . Combat | -11 -10 -------- Run | Yrd Mat Hostile Shots Fired 85 | . 85 Missed 21 | . 21 Damage Taken 888 | . 888 Core 695 | . 695 Absorbed by Shields . | . . Redirected to Core 381 | . 381 Redirected to Shielding 3 | . 3 Core Remaining (%) 100 | 100 . Volleys Fired 18 | 10 8 Largest 3 | 3 3 Hottest 180 | 180 130 Shots Fired 44 | 22 22 Gun 41 | 20 21 Cannon 1 | . 1 Launcher . | . . Special 2 | 2 . Kinetic 1 | . 1 Thermal 26 | 12 14 Explosive . | . . Electromagnetic 17 | 10 7 Robot Hit Streak 8 | 7 8 Robot Miss Streak 2 | 1 2 Penetration Max . | . . Secondary Targets 3 | . 3 Max Gunslinging Chain 1 | . 1 Shots Hit Robots 27 | 16 11 Core Hits 15 | 7 8 Critical Kills . | . . Critical Parts Destroyed . | . . Critical Strikes 1 | . 1 Burn 1 | . 1 Melee Attacks . | . . Impact . | . . Slashing . | . . Piercing . | . . Sneak Attacks . | . . Combat Hostiles . | . . Follow-up Attacks . | . . Damage Inflicted 401 | 211 190 Guns 377 | 187 190 Cannons . | . . Explosions . | . . Melee . | . . Ramming . | . . Kinetic . | . . Thermal 204 | 86 118 Explosive . | . . Electromagnetic 197 | 125 72 Impact . | . . Slashing . | . . Piercing . | . . Highest Corruption . | . . Average Corruption . | . . Corruption Purged . | . . Corruption Blocked . | . . Overload Shots . | . . Overflow Damage . | . . Projectiles . | . . Explosions . | . . Melee . | . . Knockbacks . | . . Impact . | . . Kinetic . | . . Secondary . | . . Self-Inflicted Damage . | . . Shots . | . . Rammed . | . . Targets Rammed . | . . Kicked . | . . Crushed . | . . Highest Temperature 652 | 170 652 Average Temperature 211 | 68 422 Received Heat Transfer 315 | . 315 Effects 16 | . 16 Shutdowns 2 | . 2 Energy Bleed 2 | . 2 Interference 3 | . 3 Matter Decay 1 | . 1 Short Circuit 1 | . 1 Damage (minor) 3 | . 3 Damage (major) 2 | . 2 Damage (core) 2 | . 2 Siege Activations . | . . Robots Corrupted . | . . Combat Hostiles . | . . Parts Fried . | . . Impact Corruptions . | . . Robots Melted . | . . Combat Hostiles . | . . Parts Melted 3 | . 3 Heat Transferred 584 | 200 384 Parts Sabotaged . | . . Parts Stolen . | . . Parts Stripped . | . . Power Chain Reactions . | . . Alert | -11 -10 ------- Run | Yrd Mat Peak Influence 144 | 30 144 Initial 19 | . 19 Average 34 | 11 47 Maximum Alert Level . | . . Low Security (%) 100 | 100 100 Level 1 . | . . Level 2 . | . . Level 3 . | . . Level 4 . | . . Level 5 . | . . High Security . | . . Max Security . | . . Squads Dispatched 1 | . 1 Investigation 1 | . 1 Extermination . | . . Reinforcement . | . . Assault . | . . Garrison . | . . Intercept . | . . Searches Triggered . | . . Construction Impeded . | . . Haulers Reinforced . | . . Active Scanning Responses . | . . Cargo Convoy Interrupts . | . . Stealth | -11 -10 --------- Run | Yrd Mat Distress Signals 1 | . 1 Communications Jammed . | . . Distress Signals . | . . Times Spotted 11 | . 11 Peak Tracking Total 9 | . 9 Tactical Retreats . | . . Traps | -11 -10 ------- Run | Yrd Mat Traps Triggered 1 | . 1 Indirectly . | . . Trap Hack Attempts . | . . Triggered . | . . Disarmed . | . . Reprogrammed . | . . Reused . | . . Traps Extracted . | . . Installed . | . . Triggered . | . . Machines | -11 -10 ---------- Run | Yrd Mat Machines Disabled . | . . Max in Single Turn . | . . Machines Repaired . | . . Machines Dismantled . | . . Machines Sabotaged . | . . Overloaded Fab Kills . | . . Hacking | -11 -10 --------- Run | Yrd Mat Machines Accessed . | . . Terminals . | . . Fabricators . | . . Repair Stations . | . . Recycling Units . | . . Scanalyzers . | . . Garrison Access . | . . Total Hacks . | . . Successful . | . . Failed . | . . Catastrophic . | . . Database Lockouts . | . . Manual . | . . Terminals . | . . Fabricators . | . . Repair Stations . | . . Recycling Units . | . . Scanalyzers . | . . Garrison Access . | . . Terminal Hacks . | . . Fabricator Hacks . | . . Repair Station Hacks . | . . Recycling Unit Hacks . | . . Scanalyzer . | . . Garrison Access Hacks . | . . Unauthorized Hacks . | . . Terminals . | . . Fabricators . | . . Repair Stations . | . . Recycling Units . | . . Scanalyzers . | . . Garrison Access . | . . Data Cores Recovered . | . . Used . | . . Hacking Detections . | . . Full Trace Events . | . . Feedback Events . | . . Feedback Blocked . | . . Robot Schematics Acquired . | . . Robots Built . | . . Authchips . | . . Time . | . . Total Robot Build Rating . | . . Part Schematics Acquired . | . . Parts Built . | . . Authchips . | . . Time . | . . Total Part Build Rating . | . . Parts Repaired . | . . Time . | . . Parts Recycled . | . . Recycled Matter . | . . Retrieved Matter . | . . Retrieved Components . | . . Parts Scanalyzed . | . . Part Schematics Acquired . | . . Parts Damaged . | . . Bothacking | -11 -10 ------------ Run | Yrd Mat Used RIF Installer . | . . Robots Hacked . | . . Non-combat . | . . Combat . | . . Robot Hacks Applied . | . . Relay Couplers Released . | . . Fabnet Peak Effective % . | . . Robots Rewired . | . . Allies Hacked . | . . Hacks Repelled . | . . Allies | -11 -10 -------- Run | Yrd Mat Total Allies . | . . Largest Group . | . . Highest-Rated Group . | . . Highest-Rated Ally . | . . Total Orders . | . . Ally Attacks . | . . Total Damage . | . . Kills . | . . Allies Corrupted . | . . Allies Melted . | . . Intel | -11 -10 ------- Run | Yrd Mat Robot Analysis Total . | . . Derelict Logs Recovered . | . . Drone Launches . | . . Drone Recoveries . | . . Exploration | -11 -10 ------------- Run | Yrd Mat Turns Passed 236 | 85 151 Spaces Moved 187 | 55 132 Core 17 | 17 . Treads . | . . Legs . | . . Wheels 170 | 38 132 Hover . | . . Flight . | . . Fastest Speed 50 | 50 80 Average Speed 86 | 74 91 Slowest Speed 150 | 150 95 Overloaded Moves . | . . Propulsion Burnouts . | . . Robots Hopped . | . . Cave-ins Triggered . | . . Exploration Rate (%) 21 | 3 40 Regions Visited 1 Branch Regions . Pre-discovered Areas . | . . Known Exits Taken . | . . Unknown Exits Taken 1 | 1 . Scrap Searched . | . . Spaces Dug . | . . Terrain Destroyed 1 | 1 . Melee . | . . Projectile 1 | 1 . AOE . | . . Terrain Rammed . | . . Walls Destroyed . | . . Machines Disabled . | . . Actions | -11 -10 --------- Run | Yrd Mat Total 216 | 71 145 Wait 1 | 1 . Move 186 | 54 132 Hop . | . . Pick Up . | . . Fast Attach 10 | 6 4 Attach . | . . Detach . | . . Swap . | . . Drop 1 | . 1 Fire 18 | 10 8 Melee . | . . Ram . | . . Kick . | . . Crush . | . . Escape Stasis . | . . Rewire . | . . Trap . | . . Miscellaneous . | . . Route ------- -11/Scrapyard -10/Materials (discovered 2 exits: [*Mat] / [*Min]) History --------- Turn | Location | Event 1 | -11/Scrapyard | Upgraded with Weapon slot (x3) 20 | -11/Scrapyard | Discovered new exit (range 14) 86 | -11/Scrapyard | Entered Materials 161 | -10/Materials | Discovered new exit (range 8) 197 | -10/Materials | Discovered new exit (range 16) 221 | -10/Materials | Core integrity fell below 50% 230 | -10/Materials | Core integrity fell below 20% 238 | -10/Materials | Core destroyed Last Messages --------------- 00229_ Overheating: Sml. Laser damaged (-36). 00230_ Overheating: Core damaged (-90). 00230_ K-01 Serf collects debris. 00230_ Critical hit (Burn: +37). 00230_ Acquired Power Shielding. 00231_ Acquired 19 matter. 00231_ T-07 Excavator is excavating. 00232_ K-01 Serf collects debris. 00233_ Power failure, Ion Engine shutdown. 00233_ R-06 Scavenger collects Flight Unit. 00235_ Overheating: Energy bleed (-42). 00235_ Acquired Lgt. Cannon. 00235_ K-01 Serf collects debris. 00236_ Overheating: Ion Engine damaged (-25). 00236_ K-01 Serf collects debris. 00236_ R-06 Scavenger collects Lgt. Ion Engine. 00237_ Wheel broken. 00237_ Overheating: Short circuit. 00237_ K-01 Serf collects debris. 00238_ Overheating: Core damaged (-96). Map ----- +----------------------------------------------------+ | | | | | | | | | | | | | | | | | ?????????????????????????????????????????????????? | | ?????????????????????????????????????????????????? | | ?????????????????????????????????????????????????? | | ???????????????????????????###???????????????????? | | ??????????????????????????? #??????????????????? | | ??????????????????????????? T #??????????????????? | | ?????????????????????????? #??????????????????? | | ?????????????????????????? ???????????????????? | | ?????????????????????????? ???????????????????? | | ?????????????????#####???? ????????????????????? | | ?????????????????# #???? ????????????????????? | | ???????????????### < #???? ?????????????????????? | | ?????????????### # #???? ?????????????????????? | | ?????????????# #####k#########+###?????????? | | ??????????????#t # ?????????? | | ??????????????# " g ????????? | | ????????????????#T ![ = k[ ????????? | | ????????????????#" ^ [@%% ????????? | | ?????????????????# = * g%[######???????????????? | | ?????????????????# k ^ gr """#?????????????????? | | ???? #############* !! Y"#?????????????????? | | ??? *%% !! """#?????????????????? | | ??? [== ###########??????????? | | ??? ! = # #??????????? | | ?????############ #+####### #??????????? | | ????????????????# # ?????# #??????????? | | ????????????????# # ?????# #??????????? | | ????????????????# # ?????# #??????????? | | ????????????????# # "????# #??????????? | | ????????????????# # "????# #??????????? | | ????????????????# # "????# #??????????? | | ?# #########+## ############+######??????????? | | ?# #??????????????? | | ?# ######### ########???????? | | ?# #"""""""# ? | | ?# #### #" !"! "# ########???????? | | ????????# #" "# #??????????????? | | ????????# #??????????????? | | ????????# ###### < #??????????????? | | ????????# ?????# #??????????????? | | ????????# ??????# #### ###+##########??????? | | ????????#???????# #??######### #??????? | +----------------------------------------------------+ Best States ------------- Heat Dissipation 25 Energy Generation 10 Energy Capacity 250 Matter Stores 290 Matter Capacity 300 Sight Range 16 Terrain Scan Range 16 Terrain Scan Density 10 Armor Coverage 150 Evasion (%) 50 Item Schematics ----------------- None Robot Schematics ------------------ None Fabricated ------------ Nothing Alien Tech Used ----------------- None Achievements -------------- None Challenges ------------ None RPGLIKE | -11 -10 --------- Run | Yrd Mat Levels Raised . | . . XP Earned 3550 | 3000 550 XP Spent 2400 | 2400 . Upgrades 3 | 3 . Weapon Slot 3 | 3 . Protomatter Created 14 | . 14 Protomatter Decayed . | . . Game ------ Seed HugeAutogunNanosword Manual? 0 Play Time 00:03:44 Cumulative 651.0 hours Start 2024.03.25 @ 04:16:23 End 2024.03.25 @ 04:18:43 Sessions 1 Manual Loads 0 Difficulty Rogue Special Mode Winter2019/RPGLIKE Game No. 254 Rogue 230 Adventurer 3 Explorer 21 Win Type - Total 15 Types 10/2/1/1/0/1/0/0/0 Lore% 90 Gallery% 96 Achievement% 83 Wizard Run 0 Options --------- Layout 2 ASCII 0 Keyboard 0 Movement Numpad Keybinds 0 Fullscreen 2 Font 24/Smallcaps Map View 50x44 Zoom Use 0% Tactical HUD 1 Map Filters NONE Filters NONE Steam X RUN: 24be9952-9501-4662-9081-e11bf37a793b